Workbook

Sheet Eingabemaske
A1: Eingabefelder | E1: © Amt für Gemeinden und Bürgerrecht des Kantons St.Gallen Version 1.3* letzte Aktualisierung: 8.2021
A5: Erstellungstool Geldflussrechnung
A7: Gemeinde | C7: Politische Gemeinde Muster
A9: Jahr | C9: =YEAR(TODAY())-1 -> 2023
A12: Bilanz
A14: Konto | C14: Bezeichnung | G14: ="01.01."&C9 -> 01.01.2023 | I14: ="31.12."&C9 -> 31.12.2023
A16: 100 | C16: Flüssige Mittel | G16: 9355211.6 | I16: 12165224.28
A18: 101 | C18: Forderungen | G18: 4459999.39 | I18: 4520285.23
A20: 1011 | C20: Kontokorrente mit Dritten | G20: 1000000 | I20: 2000000
A22: 102 | C22: Kurzfristige Finanzanlagen | G22: 190000 | I22: 170000
A24: 104 | C24: Aktive Rechnungsabgrenzungen Erfolgsrechnung | G24: 859499.14 | I24: 674722.33
A26: 1046 | C26: Aktive Rechnungsabgrenzungen Investitionsrechnung | G26: 0 | I26: 0
A28: 106 | C28: Vorräte und angefangene Arbeiten | G28: 8570.2 | I28: 116951.85
A30: 107 | C30: Langfristige Finanzanlagen | G30: 5828872.9 | I30: 6419856.75
A32: 108 | C32: Sach- und immaterielle Anlagen Finanzvermögen | G32: 8767860.2 | I32: 7393505.7
A34: 200 | C34: Laufende Verbindlichkeiten | G34: 3600430.99 | I34: 4890582.39
A36: 2001 | C36: Kontokorrente mit Dritten | G36: 2000000 | I36: 1000000
A38: 201/202 | C38: Kurzfristige Finanzverbindlichkeiten/Steuerbezug | G38: 2996190.86 | I38: 2428528.32
A40: 204 | C40: Passive Rechnungsabgrenzungen Erfolgsrechnung | G40: 1982323.6 | I40: 2193257.32
A42: 2046 | C42: Passive Rechnungsabgrenzungen Investitionsrechnung
A44: 205 | C44: Kurzfristige Rückstellungen Erfolgsrechnung | G44: 61254.7 | I44: 475221.12
A46: 2058 | C46: Kurzfristige Rückstellungen Investitionsrechnung
A48: 206 | C48: Langfristige Finanzverbindlichkeiten | G48: 13610874.8 | I48: 9614367.35
A50: 208 | C50: Langfristige Rückstellungen Erfolgsrechnung
A52: 2088 | C52: Langfristige Rückstellungen Investitionsrechnung
A55: Erfolgsrechnung
A57: Konto | C57: Bezeichnung | G57: =C9 -> 2023
C59: Jahresgewinn | G59: 3698728.72 | L59: =IF(G59<0,"Achtung!! Es dürfen nur positive Werte erfasst werden!!","") -> 
L60: =IF(G60<0,"Achtung!! Es dürfen nur positive Werte erfasst werden!!","") -> 
C61: Jahresverlust
A63: 33 | C63: Abschreibungen Verwaltungsvermögen | G63: 3391700.6
A65: 341/344 | C65: Kursverluste/neg. Wertberichtigungen Finanzvermögen | G65: 24000
A67: 35 | C67: Einlagen in Fonds und Spezialfinanzierungen | G67: 293935.74
A69: 364 | C69: Wertberichtigung Darlehen Verwaltungsvermögen
A71: 365 | C71: Wertberichtigung Beteiligung Verwaltungsvermögen
A73: 366 | C73: Abschreibungen Investitionsbeiträge Verwaltungsvermögen
A75: 389 | C75: Einlagen in das Eigenkapital
A77: 431 | C77: Aktivierung Eigenleistungen
A79: 441/444 | C79: Kursgewinne/pos. Wertberichtigungen Finanzvermögen | G79: 500000
A81: 466 | C81: Auflösung passivierte Anschlussbeiträge
A83: 45 | C83: Entnahmen aus Fonds und Spezialfinanzierungen | G83: 554266.77
A85: 489 | C85: Entnahmen aus Eigenkapital
A88: Investitionsrechnung
A90: Konto | C90: Bezeichnung | G90: =C9 -> 2023
A92: 50 - 56 | C92: Investitionsausgaben Verwaltungsvermögen | G92: 287481.63
A94: 60 - 66 | C94: Investitionseinnahmen Verwaltungsvermögen | G94: 97034.5
A100: Änderungsprotokoll
A102: * Änderungen gegenüber Version 1.2
A103: - Anpassung Kontobezeichnung der Gliederung 108 auf «Sach- und immaterielle Anlagen Finanzvermögen»
A105: * Änderungen gegenüber Version 1.1
A106: - Separierung der Kontoart 1011 «Kontokorrente mit Dritten» und Ausweis in Geldfluss aus Finanzierungstätigkeit
A107: - Separierung der Kontoart 2001 «Kontokorrente mit Dritten» und Ausweis in Geldfluss aus Finanzierungstätigkeit
A108: - Integration der Kontoart 431 «Aktivierung Eigenleistungen»

Sheet Geldflussrechnung
A1: GELDFLUSSRECHNUNG
A3: =Eingabemaske!C7 -> Politische Gemeinde Muster | B3: ="Jahr "&_xlfn.NUMBERVALUE(Eingabemaske!C9) -> Jahr 2023
A5: Geldfluss aus Betriebstätigkeit | B5: =SUM(B7:B26) -> 8285259.15
A7: =+IF(B7<0,"Jahresverlust",IF(B7>0,"Jahresgewinn","Jahresergebnis")) -> Jahresgewinn | B7: =Eingabemaske!G59-Eingabemaske!G61 -> 3698728.72
A8: Abschreibungen Verwaltungsvermögen | B8: =Eingabemaske!G63 -> 3391700.6
A9: Kursverluste/negative Wertberichtigungen Finanzvermögen | B9: =Eingabemaske!G65 -> 24000
A10: Einlagen in Fonds und Spezialfinanzierungen | B10: =Eingabemaske!G67 -> 293935.74
A11: Wertberichtigungen Darlehen Verwaltungsvermögen | B11: =Eingabemaske!G69 -> 0
A12: Wertberichtigungen Beteiligungen Verwaltungsvermögen | B12: =Eingabemaske!G71 -> 0
A13: Abschreibungen Investitionsbeiträge Verwaltungsvermögen | B13: =Eingabemaske!G73 -> 0
A14: Einlagen in das Eigenkapital | B14: =Eingabemaske!G75 -> 0
A15: Kursgewinne/positive Wertberichtigungen Finanzvermögen | B15: =(Eingabemaske!G79)*-1 -> -500000
A16: Auflösung passivierte Anschlussbeiträge | B16: =(Eingabemaske!G81)*-1 -> 0
A17: Entnahmen aus Fonds und Spezialfinanzierungen | B17: =(Eingabemaske!G83)*-1 -> -554266.77
A18: Entnahmen aus Eigenkapital | B18: =(Eingabemaske!G85)*-1 -> 0
A19: =+IF(B19<0,"Zunahme Forderungen",IF(B19>0,"Abnahme Forderungen","Veränderung Forderungen")) -> Zunahme Forderungen | B19: =Eingabemaske!G18-Eingabemaske!I18 -> -60285.84
A20: =+IF(B20<0,"Zunahme aktive Rechnungsabgrenzungen Erfolgsrechnung",IF(B20>0,"Abnahme aktive Rechnungsabgrenzungen Erfolgsrechnung","Veränderung aktive Rechnungsabgrenzungen Erfolgsrechnung")) -> Abnahme aktive Rechnungsabgrenzungen Erfolgsrechnung | B20: =Eingabemaske!G24-Eingabemaske!I24 -> 184776.81
A21: =+IF(B21<0,"Zunahme Vorräte und angefangene Arbeiten",IF(B21>0,"Abnahme Vorräte und angefangene Arbeiten","Veränderung Vorräte und angefangene Arbeiten")) -> Zunahme Vorräte und angefangene Arbeiten | B21: =Eingabemaske!G28-Eingabemaske!I28 -> -108381.65
A22: =+IF(B22<0,"Abnahme laufende Verbindlichkeiten",IF(B22>0,"Zunahme laufende Verbindlichkeiten","Veränderung laufende Verbindlichkeiten")) -> Zunahme laufende Verbindlichkeiten | B22: =Eingabemaske!I34-Eingabemaske!G34 -> 1290151.4
A23: =+IF(B23<0,"Abnahme passive Rechnungsabgrenzungen Erfolgsrechnung",IF(B23>0,"Zunahme passive Rechnungsabgrenzungen Erfolgsrechnung","Veränderung passive Rechnungsabgrenzungen Erfolgsrechnung")) -> Zunahme passive Rechnungsabgrenzungen Erfolgsrechnung | B23: =Eingabemaske!I40-Eingabemaske!G40 -> 210933.72
A24: =+IF(B24<0,"Abnahme kurzfristige Rückstellungen Erfolgsrechnung",IF(B24>0,"Zunahme kurzfristige Rückstellungen Erfolgsrechnung","Veränderung kurzfristige Rückstellungen Erfolgsrechnung")) -> Zunahme kurzfristige Rückstellungen Erfolgsrechnung | B24: =Eingabemaske!I44-Eingabemaske!G44 -> 413966.42
A25: =+IF(B25<0,"Abnahme langfristige Rückstellungen Erfolgsrechnung",IF(B25>0,"Zunahme langfristige Rückstellungen Erfolgsrechnung","Veränderung langfristige Rückstellungen Erfolgsrechnung")) -> Veränderung langfristige Rückstellungen Erfolgsrechnung | B25: =Eingabemaske!I50-Eingabemaske!G50 -> 0
A26: Aktivierung Eigenleistungen | B26: =(Eingabemaske!G77)*-1 -> 0
A28: Geldfluss aus Investitionstätigkeit | B28: =SUM(B30:B36) -> -190447.13
A30: Investitionsausgaben Verwaltungsvermögen | B30: =(Eingabemaske!G92)*-1 -> -287481.63
A31: Investitionseinnahmen Verwaltungsvermögen | B31: =Eingabemaske!G94 -> 97034.5
A32: =+IF(B32<0,"Zunahme aktive Rechnungsabgrenzungen Investitionsrechnung",IF(B32>0,"Abnahme aktive Rechnungsabgrenzungen Investitionsrechnung","Veränderung aktive Rechnungsabgrenzungen Investitionsrechnung")) -> Veränderung aktive Rechnungsabgrenzungen Investitionsrechnung | B32: =Eingabemaske!G26-Eingabemaske!I26 -> 0
A33: =+IF(B33<0,"Abnahme passive Rechnungsabgrenzungen Investitionsrechnung",IF(B33>0,"Zunahme passive Rechnungsabgrenzungen Investitionsrechnung","Veränderung passive Rechnungsabgrenzungen Investitionsrechnung")) -> Veränderung passive Rechnungsabgrenzungen Investitionsrechnung | B33: =Eingabemaske!I42-Eingabemaske!G42 -> 0
A34: =+IF(B34<0,"Abnahme kurzfristige Rückstellungen Investitionsrechnung",IF(B34>0,"Zunahme kurzfristige Rückstellungen Investitionsrechnung","Veränderung kurzfristige Rückstellungen Investitionsrechnung")) -> Veränderung kurzfristige Rückstellungen Investitionsrechnung | B34: =Eingabemaske!I46-Eingabemaske!G46 -> 0
A35: =+IF(B35<0,"Abnahme langfristige Rückstellungen Investitionsrechnung",IF(B35>0,"Zunahme langfristige Rückstellungen Investitionsrechnung","Veränderung langfristige Rückstellungen Investitionsrechnung")) -> Veränderung langfristige Rückstellungen Investitionsrechnung | B35: =Eingabemaske!I52-Eingabemaske!G52 -> 0
A36: Aktivierung Eigenleistungen | B36: =Eingabemaske!G77 -> 0
A38: =IF(B38>=0,"Finanzierungsüberschuss (Free Cashflow)","Finanzierungsfehlbetrag") -> Finanzierungsüberschuss (Free Cashflow) | B38: =B5+B28 -> 8094812.02
A41: Geldfluss aus Finanzierungstätigkeit | B41: =SUM(B43:B51) -> -5284799.34
A43: Kursverluste/negative Wertberichtigungen Finanzvermögen | B43: =(Eingabemaske!G65)*-1 -> -24000
A44: Kursgewinne/positive Wertberichtigungen Finanzvermögen | B44: =(Eingabemaske!G79) -> 500000
A45: =+IF(B45<0,"Zunahme kurzfristige Finanzanlagen",IF(B45>0,"Abnahme kurzfristige Finanzanlagen","Veränderung kurzfristige Finanzanlagen")) -> Abnahme kurzfristige Finanzanlagen | B45: =Eingabemaske!G22-Eingabemaske!I22 -> 20000
A46: =+IF(B46<0,"Zunahme langfristige Finanzanlagen",IF(B46>0,"Abnahme langfristige Finanzanlagen","Veränderung langfristige Finanzanlagen")) -> Zunahme langfristige Finanzanlagen | B46: =Eingabemaske!G30-Eingabemaske!I30 -> -590983.85
A47: =+IF(B47<0,"Zunahme Sach- und immaterielle Anlagen Finanzvermögen",IF(B47>0,"Abnahme Sach- und immaterielle Anlagen Finanzvermögen","Veränderung Sach- und immaterielle Anlagen Finanzvermögen")) -> Abnahme Sach- und immaterielle Anlagen Finanzvermögen | B47: =Eingabemaske!G32-Eingabemaske!I32 -> 1374354.5
A48: =+IF(B48<0,"Abnahme kurzfristige Finanzverbindlichkeiten",IF(B48>0,"Zunahme kurzfristige Finanzverbindlichkeiten","Veränderung kurzfristige Finanzverbindlichkeiten")) -> Abnahme kurzfristige Finanzverbindlichkeiten | B48: =Eingabemaske!I38-Eingabemaske!G38 -> -567662.54
A49: =+IF(B49<0,"Abnahme langfristige Finanzverbindlichkeiten",IF(B49>0,"Zunahme langfristige Finanzverbindlichkeiten","Veränderung langfristige Finanzverbindlichkeiten")) -> Abnahme langfristige Finanzverbindlichkeiten | B49: =Eingabemaske!I48-Eingabemaske!G48 -> -3996507.45
A50: =+IF(B50<0,"Zunahme Kontokorrente mit Dritten (Kontokorrentguthaben)",IF(B50>0,"Abnahme Kontokorrente mit Dritten (Kontokorrentguthaben)","Veränderung Kontokorrente mit Dritten (Kontokorrentguthaben)")) -> Zunahme Kontokorrente mit Dritten (Kontokorrentguthaben) | B50: =Eingabemaske!G20-Eingabemaske!I20 -> -1000000
A51: =+IF(B51<0,"Abnahme Kontokorrente mit Dritten (Kontokorrentschulden)",IF(B51>0,"Zunahme Kontokorrente mit Dritten (Kontokorrentschulden)","Veränderung Kontokorrente mit Dritten (Kontokorrentschulden)")) -> Abnahme Kontokorrente mit Dritten (Kontokorrentschulden) | B51: =Eingabemaske!I36-Eingabemaske!G36 -> -1000000
A53: Total Geldfluss | B53: =ROUND(B41+B28+B5,2) -> 2810012.68
A56: Kontrolle
A58: ="Bestand flüssige Mittel 01.01."&_xlfn.NUMBERVALUE(Eingabemaske!C9) -> Bestand flüssige Mittel 01.01.2023 | B58: =Eingabemaske!G16 -> 9355211.6
A59: ="Bestand flüssige Mittel 31.12."&_xlfn.NUMBERVALUE(Eingabemaske!C9) -> Bestand flüssige Mittel 31.12.2023 | B59: =Eingabemaske!I16 -> 12165224.28
A61: =+IF(B61<0,"Abnahme flüssige Mittel",IF(B61>0,"Zunahme flüssige Mittel","Veränderung flüssige Mittel")) -> Zunahme flüssige Mittel | B61: =ROUND(B59-B58,2) -> 2810012.68
A63: =IF(B61=B53,"","Achtung die Geldflussrechnung hat eine Differenz!! Die Werte in den Zellen B53 und B61 müssen übereinstimmen!") -> 

Sheet Haftungsausschluss
A1: Haftungsausschluss:
A2: Die Software und Ihre Dokumentation wird "wie sie ist" und ohne jede Gewährleistung für Funktion, Korrektheit oder Fehlerfreiheit zur Verfügung gestellt. Für jedweden direkten oder indirekten Schaden - insbesondere Schaden an anderer Software, Schaden an Hardware, Schaden durch Nutzungsausfall und Schaden durch Funktionsuntüchtigkeit der Software - kann der Autor nicht haftbar gemacht werden. Ausschliesslich der Benutzer haftet für die Folgen der Benutzung dieser Software.
A3: Diese Software wurde mit grösster Sorgfalt entwickelt, jedoch können Fehler niemals ausgeschlossen werden. Es kann daher keine Gewähr für die Sicherheit Ihrer Daten übernommen werden.
